fUST/lending_fUST_20240802
["ID","MTS","AMOUNT","RATE_DAILY","PERIOD"]
[333861113,1722576641812,-500.0,0.00013698,2]
[333861114,1722576641823,-2207.71,0.00013698,2]
[333861115,1722576641836,-500.0,0.00013698,2]
[333861116,1722576641845,-500.0,0.00013698,2]
[333861117,1722576641855,-500.0,0.00013698,2]
[333861118,1722576641865,-787.78,0.00013698,2]
[333861119,1722576641874,-500.0,0.00013698,2]
[333861120,1722576641884,-787.19,0.00013698,2]
[333861121,1722576641893,-500.0,0.00013698,2]
[333861122,1722576641904,-500.0,0.00013698,2]
[333861123,1722576641915,-500.0,0.00013698,2]
[333861124,1722576641924,-500.0,0.00013698,2]
[333861125,1722576641933,-500.0,0.00013698,2]
[333861126,1722576641942,-500.0,0.00013698,2]
[333861127,1722576641951,-500.0,0.00013698,2]
[333861128,1722576641961,-814.48,0.00013698,2]
[333861129,1722576641969,-500.0,0.00013698,2]
[333861130,1722576641979,-519.14,0.00013698,2]
[333861131,1722576641988,-500.0,0.00013698,2]
[333861132,1722576641997,-500.0,0.00013698,2]
[333861133,1722576642006,-500.0,0.00013698,2]
[333861134,1722576642015,-736.58,0.00013698,2]
[333861135,1722576642025,-341.6602562,0.00013698,2]
[333861136,1722576642038,-79.50571514,0.00013698,2]
[333861137,1722576642047,-500.0,0.00013698,2]
[333861138,1722576642056,-500.0,0.00013698,2]
[333861139,1722576642066,-518.91566421,0.00013698,2]
[333861140,1722576642075,-587.11,0.00013698,2]
[333861141,1722576642084,-296.97884,0.00013698,2]
[333861142,1722576642094,-296.97884,0.00013698,2]
[333861143,1722576642103,-296.97884,0.00013698,2]
[333861144,1722576642112,-178.43031524,0.00013698,2]
[333861152,1722576643827,-348.27968476,0.00013698,2]
[333861153,1722576643837,-296.97884,0.00013698,2]
[333861154,1722576643847,-296.97884,0.00013698,2]
[333861155,1722576643857,-173.18393872,0.00013698,2]
[333861156,1722576643870,-123.79490128,0.00013698,2]
[333861157,1722576643881,-296.97884,0.00013698,2]
[333861158,1722576643890,-296.97884,0.00013698,2]
[333861159,1722576643901,-296.97884,0.00013698,2]
[333861160,1722576643911,-296.97884,0.00013698,2]
[333861161,1722576643919,-296.97884,0.00013698,2]
[333861162,1722576643929,-296.97884,0.00013698,2]
[333861163,1722576643938,-649.28,0.00013698,2]
[333861164,1722576643947,-296.97884,0.00013698,2]
[333861165,1722576643957,-4138.19,0.00013698,2]
[333861166,1722576643967,-296.97884,0.00013698,2]
[333861167,1722576643976,-296.97884,0.00013698,2]
[333861168,1722576643986,-296.97884,0.00013698,2]
[333861169,1722576643995,-296.97884,0.00013698,2]
[333861170,1722576644004,-1107.17,0.00013698,2]
[333861171,1722576644013,-296.97884,0.00013698,2]
[333861172,1722576644023,-296.97884,0.00013698,2]
[333861173,1722576644032,-296.978845,0.00013698,2]
[333861174,1722576644042,-628.12717823,0.00013698,2]
[333861175,1722576644052,-151.0,0.00013698,2]
[333861176,1722576644062,-151.0,0.00013698,2]
[333861177,1722576644071,-151.0,0.00013698,2]
[333861178,1722576644081,-151.0,0.00013698,2]
[333861179,1722576644090,-151.0,0.00013698,2]
[333861180,1722576644100,-151.0,0.00013698,2]
[333861181,1722576644109,-578.98,0.00013698,2]
[333861182,1722576644119,-500.0,0.00013698,2]
[333861183,1722576644131,-500.0,0.00013698,2]
[333861184,1722576644140,-2523.05,0.00013698,2]
[333861185,1722576644150,-500.0,0.00013698,2]
[333861186,1722576644160,-108.55049457,0.00013698,2]
[333861187,1722576644172,-391.44950543,0.00013698,2]
[333861188,1722576644182,-500.0,0.00013698,2]
[333861189,1722576644192,-500.0,0.00013698,2]
[333861190,1722576644201,-755.69,0.00013698,2]
[333861191,1722576644211,-500.0,0.00013698,2]
[333861192,1722576644220,-500.0,0.00013698,2]
[333861193,1722576644230,-500.0,0.00013698,2]
[333861194,1722576644239,-1646.13,0.00013698,2]
[333861195,1722576644249,-758.21,0.00013698,2]
[333861196,1722576644259,-500.0,0.00013698,2]
[333861197,1722576644268,-229.194893,0.00013698,2]
[333861198,1722576644278,-500.0,0.00013698,2]
[333861199,1722576644288,-500.0,0.00013698,2]
[333861200,1722576644297,-500.0,0.00013698,2]
[333861201,1722576644307,-500.0,0.00013698,2]
[333861202,1722576644317,-151.0,0.00013698,2]
[333861203,1722576644327,-151.0,0.00013698,2]
[333861204,1722576644337,-151.0,0.00013698,2]
[333861205,1722576644347,-151.0,0.00013698,2]
[333861206,1722576644357,-37.12560157,0.00013698,2]
[333861225,1722576646890,-113.87439843,0.00013698,2]
[333861226,1722576646900,-151.0,0.00013698,2]
[333861227,1722576646911,-151.0,0.00013698,2]
[333861228,1722576646921,-77.14686928,0.00013698,2]
[333861266,1722577255975,5000.0,0.00027,120]
[333861270,1722577505894,200.0,0.00027,120]
[333861275,1722577724568,209.14855116,9.999e-05,2]
[333861277,1722577802565,234.80639723,9.999e-05,2]
[333861278,1722577802784,16285.61378307,9.999e-05,2]
[333861279,1722577809924,3293.92351773,9.999e-05,2]
[333861280,1722577816164,1634.21843086,9.999e-05,2]
[333861281,1722577823124,219.16506913,9.999e-05,2]
[333861282,1722577824326,179.81232636,9.999e-05,2]
[333861343,1722577837797,-897.15,0.00010959,2]
[333861344,1722577837807,-212.3018818,0.0001212,2]
[333861345,1722577837817,-154.97586039,0.0001212,2]
[333861346,1722577837827,-161.175653,0.00012986,2]
[333861347,1722577837837,-620.00955892,0.00013144,2]
[333861348,1722577837847,-367.80729453,0.00013587,2]
[333861349,1722577837857,-2975.77410918,0.00013598,2]
[333861350,1722577837867,-150.112233,0.000136,2]
[333861351,1722577837878,-300.0,0.00013687,2]
[333861352,1722577837888,-10138.4285484,0.00013688,2]
[333861353,1722577837898,-500.0,0.00013697,2]
[333861354,1722577837909,-500.0,0.00013697,2]
[333861355,1722577837919,-500.0,0.00013697,2]
[333861356,1722577837929,-502.45302646,0.00013698,2]
[333861357,1722577837939,-500.0,0.00013698,2]
[333861358,1722577837948,-503.71729124,0.00013698,2]
[333861359,1722577837958,-500.0,0.00013698,2]
[333861360,1722577837968,-500.0,0.00013698,2]
[333861361,1722577837981,-500.0,0.00013698,2]
[333861362,1722577837991,-309.70528574,0.00013698,2]
[333861363,1722577838000,-500.0,0.00013698,2]
[333861364,1722577838010,-517.63429401,0.00013698,2]
[333861365,1722577838023,-500.0,0.00013698,2]
[333861367,1722577838033,-509.48739827,0.00013698,2]
[333861369,1722577838043,-500.0,0.00013698,2]
[333861371,1722577838053,-500.0,0.00013698,2]
[333861372,1722577838062,-500.0,0.00013698,2]
[333861373,1722577838071,-500.0,0.00013698,2]
[333861374,1722577838081,-500.0,0.00013698,2]
[333861375,1722577838091,-500.0,0.00013698,2]
[333861376,1722577838101,-500.0,0.00013698,2]
[333861377,1722577838110,-500.0,0.00013698,2]
[333861378,1722577838120,-541.53,0.00013698,2]
[333861379,1722577838130,-520.99630898,0.00013698,2]
[333861380,1722577838140,-500.0,0.00013698,2]
[333861381,1722577838150,-500.0,0.00013698,2]
[333861382,1722577838160,-500.0,0.00013698,2]
[333861383,1722577838169,-502.23575527,0.00013698,2]
[333861384,1722577838179,-500.0,0.00013698,2]
[333861385,1722577838192,-500.0,0.00013698,2]
[333861386,1722577838202,-500.0,0.00013698,2]
[333861387,1722577838212,-500.0,0.00013698,2]
[333861388,1722577838222,-500.0,0.00013698,2]
[333861389,1722577838233,-500.0,0.00013698,2]
[333861390,1722577838242,-500.0,0.00013698,2]
[333861391,1722577838252,-500.0,0.00013698,2]
[333861392,1722577838262,-500.0,0.00013698,2]
[333861393,1722577838272,-500.0,0.00013698,2]
[333861394,1722577838282,-500.0,0.00013698,2]
[333861395,1722577838292,-500.0,0.00013698,2]
[333861396,1722577838301,-500.0,0.00013698,2]
[333861397,1722577838311,-1075.6,0.00013698,2]
[333861398,1722577838321,-500.0,0.00013698,2]
[333861399,1722577838331,-313.03647644,0.00013698,2]
[333861400,1722577838341,-500.0,0.00013698,2]
[333861401,1722577838353,-500.0,0.00013698,2]
[333861402,1722577838362,-500.0,0.00013698,2]
[333861403,1722577838372,-500.0,0.00013698,2]
[333861404,1722577838382,-500.0,0.00013698,2]
[333861405,1722577838396,-500.0,0.00013698,2]
[333861406,1722577838412,-506.43700171,0.00013698,2]
[333861407,1722577838424,-616.32,0.00013698,2]
[333861408,1722577838437,-500.0,0.00013698,2]
[333861410,1722577838448,-500.0,0.00013698,2]
[333861412,1722577838460,-500.0,0.00013698,2]
[333861415,1722577838474,-500.0,0.00013698,2]
[333861417,1722577838488,-544.04034627,0.00013698,2]
[333861419,1722577838501,-500.0,0.00013698,2]
[333861421,1722577838516,-500.0,0.00013698,2]
[333861423,1722577838528,-611.49,0.00013698,2]
[333861425,1722577838542,-243.87322129,0.00013698,2]
[333861427,1722577838555,-500.0,0.00013698,2]
[333861428,1722577838569,-500.0,0.00013698,2]
[333861429,1722577838581,-500.0,0.00013698,2]
[333861430,1722577838593,-547.31,0.00013698,2]
[333861431,1722577838605,-500.0,0.00013698,2]
[333861432,1722577838619,-500.0,0.00013698,2]
[333861433,1722577838632,-541.3,0.00013698,2]
[333861434,1722577838645,-500.0,0.00013698,2]
[333861435,1722577838660,-500.0,0.00013698,2]
[333861436,1722577838670,-694.21,0.00013698,2]
[333861437,1722577838681,-500.0,0.00013698,2]
[333861438,1722577838694,-500.0,0.00013698,2]
[333861439,1722577838707,-622.64088113,0.00013698,2]
[333861440,1722577838719,-500.0,0.00013698,2]
[333861441,1722577838732,-500.0,0.00013698,2]
[333861442,1722577838745,-500.0,0.00013698,2]
[333861443,1722577838758,-500.0,0.00013698,2]
[333861444,1722577838772,-536.30954369,0.00013698,2]
[333861445,1722577838785,-660.07,0.00013698,2]
[333861446,1722577838799,-500.0,0.00013698,2]
[333861447,1722577838810,-500.0,0.00013698,2]
[333861448,1722577838820,-500.0,0.00013698,2]
[333861449,1722577838830,-500.0,0.00013698,2]
[333861450,1722577838840,-551.44747579,0.00013698,2]
[333861451,1722577838853,-500.0,0.00013698,2]
[333861452,1722577838865,-500.0,0.00013698,2]
[333861453,1722577838878,-506.57828957,0.00013698,2]
[333861454,1722577838890,-500.0,0.00013698,2]
[333861455,1722577838901,-500.0,0.00013698,2]
[333861456,1722577838916,-500.0,0.00013698,2]
[333861457,1722577838927,-500.0,0.00013698,2]
[333861458,1722577838939,-406.21841879,0.00013698,2]
[333861459,1722577838950,-500.0,0.00013698,2]
[333861460,1722577838961,-1032.12,0.00013698,2]
[333861461,1722577838972,-506.00623471,0.00013698,2]
[333861462,1722577838982,-500.0,0.00013698,2]
[333861463,1722577838994,-500.0,0.00013698,2]
[333861464,1722577839005,-1179.9,0.00013698,2]
[333861465,1722577839016,-500.0,0.00013698,2]
[333861466,1722577839028,-151.0,0.00013698,2]
[333861467,1722577839039,-500.0,0.00013698,2]
[333861468,1722577839051,-151.0,0.00013698,2]
[333861469,1722577839063,-151.0,0.00013698,2]
[333861470,1722577839073,-151.0,0.00013698,2]
[333861471,1722577839084,-151.0,0.00013698,2]
[333861472,1722577839095,-151.0,0.00013698,2]
[333861473,1722577839106,-1083.93,0.00013698,2]
[333861474,1722577839117,-500.0,0.00013698,2]
[333861475,1722577839128,-500.0,0.00013698,2]
[333861476,1722577839139,-500.0,0.00013698,2]
[333861477,1722577839149,-500.0,0.00013698,2]
[333861478,1722577839165,-500.0,0.00013698,2]
[333861479,1722577839176,-643.38788955,0.00013698,2]
[333861480,1722577839192,-503.03660425,0.00013698,2]
[333861481,1722577839204,-1486.18,0.00013698,2]
[333861482,1722577839215,-5347.92,0.00013698,2]
[333861483,1722577839226,-500.0,0.00013698,2]
[333861484,1722577839238,-833.15,0.00013698,2]
[333861485,1722577839249,-500.0,0.00013698,2]
[333861486,1722577839259,-754.39,0.00013698,2]
[333861487,1722577839274,-500.0,0.00013698,2]
[333861488,1722577839286,-2115.73,0.00013698,2]
[333861489,1722577839297,-503.91639059,0.00013698,2]
[333861490,1722577839309,-500.0,0.00013698,2]
[333861491,1722577839319,-511.41415857,0.00013698,2]
[333861492,1722577839331,-754.95,0.00013698,2]
[333861493,1722577839342,-151.0,0.00013698,2]
[333861494,1722577839353,-500.0,0.00013698,2]
[333861495,1722577839365,-500.0,0.00013698,2]
[333861496,1722577839376,-2763.87,0.00013698,2]
[333861497,1722577839387,-500.0,0.00013698,2]
[333861498,1722577839398,-500.0,0.00013698,2]
[333861499,1722577839414,-562.64,0.00013698,2]
[333861500,1722577839425,-218.04485451,0.00013698,2]
[333861501,1722577839435,-500.0,0.00013698,2]
[333861502,1722577839446,-500.0,0.00013698,2]
[333861503,1722577839457,-500.0,0.00013698,2]
[333861504,1722577839468,-500.0,0.00013698,2]
[333861505,1722577839480,-500.0,0.00013698,2]
[333861506,1722577839491,-500.0,0.00013698,2]
[333861507,1722577839503,-592.75657448,0.00013698,2]
[333861508,1722577839514,-504.77,0.00013698,2]
[333861509,1722577839526,-551.55945524,0.00013698,2]
[333861510,1722577839537,-500.0,0.00013698,2]
[333861511,1722577839549,-500.0,0.00013698,2]
[333861512,1722577839560,-500.0,0.00013698,2]
[333861513,1722577839573,-151.0,0.00013698,2]
[333861517,1722577839708,-151.0,0.00013698,2]
[333861518,1722577839725,-151.0,0.00013698,2]
[333861519,1722577839734,-1061.04,0.00013698,2]
[333861520,1722577839744,-175.377563,0.00013698,2]
[333861521,1722577839754,-500.0,0.00013698,2]
[333861522,1722577839764,-500.0,0.00013698,2]
[333861523,1722577839773,-500.0,0.00013698,2]
[333861524,1722577839783,-779.54,0.00013698,2]
[333861525,1722577839793,-500.0,0.00013698,2]
[333861526,1722577839803,-500.0,0.00013698,2]
[333861527,1722577839812,-500.0,0.00013698,2]
[333861528,1722577839822,-500.0,0.00013698,2]
[333861529,1722577839831,-551.97,0.00013698,2]
[333861530,1722577839840,-500.0,0.00013698,2]
[333861531,1722577839850,-500.0,0.00013698,2]
[333861532,1722577839860,-3965.77,0.00013698,2]
[333861533,1722577839869,-554.89723758,0.00013698,2]
[333861534,1722577839879,-500.0,0.00013698,2]
[333861535,1722577839889,-554.86,0.00013698,2]
[333861536,1722577839898,-500.0,0.00013698,2]
[333861537,1722577839912,-506.74884848,0.00013698,2]
[333861538,1722577839921,-2417.93,0.00013698,2]
[333861539,1722577839932,-780.55,0.00013698,2]
[333861540,1722577839942,-500.0,0.00013698,2]
[333861541,1722577839951,-500.0,0.00013698,2]
[333861542,1722577839961,-500.0,0.00013698,2]
[333861543,1722577839970,-500.0,0.00013698,2]
[333861544,1722577839979,-504.70977544,0.00013698,2]
[333861545,1722577839989,-500.0,0.00013698,2]
[333861546,1722577839999,-500.0,0.00013698,2]
[333861547,1722577840008,-1577.54,0.00013698,2]
[333861548,1722577840018,-500.0,0.00013698,2]
[333861549,1722577840027,-500.0,0.00013698,2]
[333861550,1722577840037,-622.22,0.00013698,2]
[333861551,1722577840047,-502.50756772,0.00013698,2]
[333861552,1722577840056,-726.62,0.00013698,2]
[333861553,1722577840066,-741.56,0.00013698,2]
[333861554,1722577840075,-226.31575498,0.00013698,2]
[333861555,1722577840085,-500.0,0.00013698,2]
[333861556,1722577840095,-540.16,0.00013698,2]
[333861557,1722577840104,-500.0,0.00013698,2]
[333861558,1722577840114,-616.4600787,0.00013698,2]
[333861559,1722577840123,-500.0,0.00013698,2]
[333861560,1722577840133,-503.08725641,0.00013698,2]
[333861561,1722577840142,-500.0,0.00013698,2]
[333861562,1722577840152,-698.13,0.00013698,2]
[333861563,1722577840169,-544.41,0.00013698,2]
[333861564,1722577840179,-500.0,0.00013698,2]
[333861565,1722577840189,-500.0,0.00013698,2]
[333861566,1722577840201,-654.34,0.00013698,2]
[333861567,1722577840212,-500.0,0.00013698,2]
[333861568,1722577840222,-500.0,0.00013698,2]
[333861569,1722577840232,-500.0,0.00013698,2]
[333861570,1722577840241,-500.0,0.00013698,2]
[333861571,1722577840251,-605.65,0.00013698,2]
[333861572,1722577840261,-500.0,0.00013698,2]
[333861573,1722577840271,-500.0,0.00013698,2]
[333861574,1722577840281,-2293.74,0.00013698,2]
[333861575,1722577840291,-2293.74,0.00013698,2]
[333861576,1722577840300,-2293.74,0.00013698,2]
[333861577,1722577840310,-500.0,0.00013698,2]
[333861578,1722577840320,-613.99,0.00013698,2]
[333861579,1722577840329,-500.0,0.00013698,2]
[333861580,1722577840338,-500.0,0.00013698,2]
[333861581,1722577840348,-500.0,0.00013698,2]
[333861582,1722577840357,-500.0,0.00013698,2]
[333861583,1722577840367,-500.0,0.00013698,2]
[333861584,1722577840376,-853.75,0.00013698,2]
[333861585,1722577840386,-500.0,0.00013698,2]
[333861586,1722577840396,-500.0,0.00013698,2]
[333861587,1722577840408,-682.79527827,0.00013698,2]
[333861588,1722577840428,-27.57472173,0.00013698,2]
[333861589,1722577840437,-500.0,0.00013698,2]
[333861590,1722577840447,-500.0,0.00013698,2]
[333861591,1722577840457,-500.0,0.00013698,2]
[333861592,1722577840465,-500.0,0.00013698,2]
[333861593,1722577840474,-1982.28293557,0.00013699,2]
[333861607,1722577841436,-1017.71706443,0.00013699,2]
[333861608,1722577841446,-956.585271,0.00013699,2]
[333861609,1722577841456,-150.112233,0.000137,2]
[333861610,1722577841466,-153.0,0.000137,2]
[333861611,1722577841477,-153.0,0.000137,2]
[333861612,1722577841487,-153.0,0.000137,2]
[333861613,1722577841498,-153.0,0.000137,2]
[333861614,1722577841507,-206.9342036,0.000137,2]
[333861615,1722577841517,-2583.6054678,0.00013768,5]
[333861616,1722577841527,-10138.4285484,0.00013768,2]
[333861617,1722577841536,-1410.0,0.00013778,2]
[333861618,1722577841545,-5000.0,0.000138,2]
[333861620,1722577841555,-153.0,0.000138,2]
[333861622,1722577841564,-206.9342036,0.000138,2]
[333861624,1722577841574,-153.0,0.000138,2]
[333861625,1722577841583,-206.9342036,0.000138,2]
[333861626,1722577841592,-153.0,0.000138,2]
[333861627,1722577841602,-620.00047795,0.00013801,2]
[333861628,1722577841612,-455.4154248,0.00013857,2]
[333861629,1722577841622,-20276.8570968,0.00013862,2]
[333861630,1722577841631,-500.0,0.0001387,2]
[333861631,1722577841641,-500.0,0.0001387,2]
[333861632,1722577841650,-500.0,0.0001387,2]
[333861633,1722577841662,-500.0,0.0001387,2]
[333861634,1722577841671,-498.22269994,0.0001387,2]
[333861635,1722577841681,-215.46188446,0.0001387,2]
[333861636,1722577841690,-500.0,0.0001387,2]
[333861637,1722577841699,-500.0,0.0001387,2]
[333861638,1722577841709,-500.0,0.0001387,2]
[333861639,1722577841719,-500.0,0.0001387,2]
[333861640,1722577841728,-500.0,0.0001387,2]
[333861641,1722577841737,-500.0,0.0001387,2]
[333861642,1722577841746,-500.0,0.0001387,2]
[333861643,1722577841755,-500.0,0.0001387,2]
[333861644,1722577841764,-500.0,0.0001387,2]
[333861645,1722577841773,-500.0,0.0001387,2]
[333861646,1722577841783,-500.0,0.0001387,2]
[333861647,1722577841792,-201.66268002,0.0001387,2]
[333861648,1722577841801,-500.0,0.0001387,2]
[333861649,1722577841811,-500.0,0.0001387,2]
[333861650,1722577841820,-136.66247595,0.0001387,2]
[333861651,1722577841948,-363.33752405,0.0001387,2]
[333861652,1722577841959,-500.0,0.0001387,2]
[333861653,1722577841970,-500.0,0.0001387,2]
[333861654,1722577841979,-500.0,0.0001387,2]
[333861655,1722577841989,-500.0,0.0001387,2]
[333861656,1722577841999,-500.0,0.0001387,2]
[333861657,1722577842008,-500.0,0.0001387,2]
[333861658,1722577842018,-500.0,0.0001387,2]
[333861659,1722577842027,-500.0,0.0001387,2]
[333861660,1722577842036,-500.0,0.0001387,2]
[333861661,1722577842046,-500.0,0.0001387,2]
[333861662,1722577842056,-500.0,0.0001387,2]
[333861663,1722577842066,-500.0,0.0001387,2]
[333861664,1722577842075,-500.0,0.0001387,2]
[333861665,1722577842084,-500.0,0.0001387,2]
[333861666,1722577842093,-500.0,0.0001387,2]
[333861667,1722577842103,-500.0,0.0001387,2]
[333861668,1722577842113,-500.0,0.0001387,2]
[333861669,1722577842124,-500.0,0.0001387,2]
[333861670,1722577842133,-500.0,0.0001387,2]
[333861671,1722577842142,-500.0,0.0001387,2]
[333861672,1722577842152,-500.0,0.0001387,2]
[333861673,1722577842165,-500.0,0.0001387,2]
[333861674,1722577842175,-500.0,0.0001387,2]
[333861675,1722577842189,-500.0,0.0001387,2]
[333861676,1722577842203,-500.0,0.0001387,2]
[333861677,1722577842212,-500.0,0.0001387,2]
[333861678,1722577842223,-500.0,0.0001387,2]
[333861679,1722577842233,-500.0,0.0001387,2]
[333861683,1722577842329,-500.0,0.0001387,2]
[333861684,1722577842340,-500.0,0.0001387,2]
[333861685,1722577842351,-500.0,0.0001387,2]
[333861686,1722577842361,-2293.74,0.00013871,2]
[333861687,1722577842370,-2975.77410915,0.00013872,2]
[333861688,1722577842380,-134.65452243,0.00013872,2]
[333861721,1722577846061,-500.0,0.00013698,2]
[333861722,1722577846071,-236.87080341,0.00013698,2]
[333861723,1722577846204,-263.12919659,0.00013698,2]
[333861724,1722577846213,-1865.34547757,0.00013872,2]
[333861725,1722577846223,-846.99623326,0.00013872,2]
[333861726,1722577895742,9852.1668562,9.999e-05,2]
[333861727,1722577901945,155.06226822,9.999e-05,2]
[333861728,1722577914161,150.0,0.00025,60]
[333861729,1722577923017,288.87932975,0.0001,2]
[333861731,1722577968700,6496.61477272,0.0001,2]
[333861732,1722577980412,936.97146555,0.0001,2]
[333861733,1722578047703,4331.07651514,0.0001,2]
[333861735,1722578114541,155.37831884,9.999e-05,2]
[333861736,1722578128699,3609.23042929,0.0001,2]
[333861737,1722578142000,3563.53350396,0.0001,2]
[333861738,1722578234699,1880.40905366,0.0001,2]
[333861739,1722578272019,3563.53350396,0.0001,2]
[333861740,1722578311032,527.54404365,9.999e-05,2]
[333861741,1722578333701,1880.40905366,0.0001,2]
[333861742,1722578348701,1880.40905366,0.0001,2]
[333861743,1722578361997,3563.53350396,9.999e-05,2]
[333861744,1722578368199,852.87267021,9.999e-05,2]
[333861745,1722578375573,191.16754095,9.999e-05,2]
[333861746,1722578377007,3563.53350396,9.999e-05,2]
[333861748,1722578386967,5147.17580473,9.999e-05,2]
[333861749,1722578389305,16276.9865334,9.999e-05,2]
[333861750,1722578401847,167.83727288,9.999e-05,2]
[333861751,1722578406002,290.22116129,9.999e-05,2]
[333861752,1722578412188,154.99391875,9.999e-05,2]
[333861753,1722578425101,559.09003319,9.999e-05,2]
[333861754,1722578469441,155.83621871,9.999e-05,2]
[333861755,1722578480016,3563.53350396,9.999e-05,2]
[333861756,1722578501117,197.02280277,9.999e-05,2]
[333861757,1722578509315,156.05846548,9.999e-05,2]
[333861758,1722578510358,1000.0,0.00027,120]
[333861759,1722578512584,251.53330235,9.999e-05,2]
[333861760,1722578513489,155.80970014,9.999e-05,2]
[333861761,1722578528876,1000.0,0.00025,60]
[333861762,1722578588548,3563.53350396,0.00025,60]
[333861763,1722578598087,196.85950782,9.999e-05,2]
[333861764,1722578698948,155.45847678,9.999e-05,2]
[333861765,1722578748700,3713.69746338,0.00027,120]
[333861772,1722578942830,16555.63829606,0.00027,120]
[333861860,1722579038166,-491.14668419,0.00012,2]
[333861861,1722579038176,-160.15963377,0.0001212,2]
[333861862,1722579038497,-818.75508754,0.0001212,2]
[333861885,1722579041059,-2584.61878265,0.0001212,2]
[333861886,1722579041069,-170.979472,0.00012986,2]
[333861887,1722579041079,-1000.0,0.00013,13]
[333861888,1722579041088,-300.0,0.00013425,2]
[333861889,1722579041098,-150.0,0.00013426,2]
[333861890,1722579041107,-506.0,0.00013426,2]
[333861891,1722579041118,-1410.0,0.00013426,2]
[333861892,1722579041131,-300.0,0.00013497,2]
[333861893,1722579041141,-2892.02400021,0.00013498,2]
[333861894,1722579041151,-3295.57485421,0.00013498,2]
[333861895,1722579041160,-3001.64232722,0.000135,2]
[333861896,1722579041170,-153.0,0.000135,2]
[333861897,1722579041181,-306.0,0.000135,2]
[333861898,1722579041193,-306.0,0.000135,2]
[333861899,1722579041203,-413.824136,0.000135,2]
[333861900,1722579041212,-592.6780948,0.000135,2]
[333861901,1722579041222,-413.816345,0.000135,2]
[333861902,1722579041231,-306.0,0.000135,2]
[333861903,1722579041242,-295.3057892,0.000135,2]
[333861904,1722579041251,-206.9342036,0.00013507,2]
[333861905,1722579041260,-150.45151105,0.00013519,2]
[333861906,1722579041270,-2892.0240002,0.00013523,2]
[333861907,1722579041282,-2892.0240002,0.00013548,2]
[333861908,1722579041292,-2892.0240002,0.00013573,2]
[333861909,1722579041302,-367.80729453,0.00013587,2]
[333861910,1722579041311,-49476.2784236,0.00013588,2]
[333861911,1722579041321,-2892.0240002,0.00013598,2]
[333861912,1722579041330,-88041.00376674,0.00013598,2]
[333861913,1722579041339,-200.0,0.00013598,2]
[333861914,1722579041348,-4149.0,0.000136,2]
[333861915,1722579041357,-150.112233,0.000136,2]
[333861916,1722579041366,-150.112233,0.000136,2]
[333861917,1722579041377,-150.112233,0.000136,2]
[333861918,1722579041386,-150.112233,0.000136,2]
[333861919,1722579041395,-150.112233,0.000136,2]
[333861920,1722579041405,-150.112233,0.000136,2]
[333861921,1722579041414,-4422.21941839,0.00013628,2]
[333861922,1722579041423,-49476.2784236,0.00013678,2]
[333861923,1722579041432,-231.412833,0.00013678,2]
[333861924,1722579041441,-151.0,0.00013678,2]
[333861925,1722579041450,-151.0,0.00013678,2]
[333861926,1722579041459,-151.0,0.00013678,2]
[333861927,1722579041469,-1238.420534,0.00013678,2]